fUSD/lending_fUSD_20240425
["ID","MTS","AMOUNT","RATE_DAILY","PERIOD"]
[323490480,1714048250905,-500.0,0.00012719,2]
[323490481,1714048250916,-500.0,0.00012719,2]
[323490482,1714048250926,-3839.55,0.00012719,2]
[323490483,1714048250937,-500.0,0.00012719,2]
[323490484,1714048250948,-500.0,0.00012719,2]
[323490485,1714048250958,-509.55,0.00012719,2]
[323490486,1714048250972,-500.0,0.00012719,2]
[323490487,1714048250983,-910.42,0.00012719,2]
[323490488,1714048250993,-500.0,0.00012719,2]
[323490489,1714048251003,-9283.16,0.00012719,2]
[323490490,1714048251013,-500.0,0.00012719,2]
[323490491,1714048251024,-500.0,0.00012719,2]
[323490492,1714048251035,-1338.53,0.00012719,2]
[323490493,1714048251045,-500.0,0.00012719,2]
[323490494,1714048251056,-2118.17,0.00012719,2]
[323490495,1714048251066,-1854.79,0.00012719,2]
[323490496,1714048251077,-3544.43,0.00012719,2]
[323490497,1714048251087,-4521.24687299,0.00012719,2]
[323490498,1714048251696,-280.62050714,0.00011897,2]
[323490499,1714048251718,-219.37949286,0.00011897,2]
[323490500,1714048251731,-441.47191826,0.00012071,2]
[323490501,1714048251745,-500.0,0.00012171,2]
[323490502,1714048251757,-500.0,0.00012171,2]
[323490503,1714048251768,-500.0,0.00012445,2]
[323490504,1714048251782,-973.86394089,0.00012719,2]
[323490505,1714048251798,-1602.684,0.00012719,2]
[323490506,1714048251813,-293.55856575,0.00012719,2]
[323490507,1714048251828,-1753.66078009,0.00012719,2]
[323490508,1714048251848,-6584.60584028,0.00012719,2]
[323490509,1714048251862,-500.0,0.00012719,2]
[323490510,1714048251874,-500.0,0.00012719,2]
[323490511,1714048251885,-1516.75,0.00012719,2]
[323490512,1714048251895,-1261.1,0.00012719,2]
[323490513,1714048251907,-500.0,0.00012719,2]
[323490514,1714048251922,-3839.72,0.00012719,2]
[323490515,1714048251935,-597.21,0.00012719,2]
[323490516,1714048251946,-2277.96,0.00012719,2]
[323490517,1714048251960,-533.81,0.00012719,2]
[323490518,1714048251976,-953.25,0.00012719,2]
[323490519,1714048251987,-500.0,0.00012719,2]
[323490520,1714048252000,-4374.79,0.00012719,2]
[323490521,1714048252011,-584.67,0.00012719,2]
[323490522,1714048252023,-13922.02,0.00012719,2]
[323490523,1714048252035,-1376.24,0.00012719,2]
[323490524,1714048252047,-500.0,0.00012719,2]
[323490525,1714048252059,-1257.62,0.00012719,2]
[323490526,1714048252071,-1060.86,0.00012719,2]
[323490527,1714048252084,-282.64,0.00012719,2]
[323490528,1714048252098,-542.39,0.00012719,2]
[323490529,1714048252111,-500.0,0.00012719,2]
[323490530,1714048252122,-500.0,0.00012719,2]
[323490531,1714048252135,-1333.34,0.00012719,2]
[323490532,1714048252146,-500.0,0.00012719,2]
[323490533,1714048252157,-500.0,0.00012719,2]
[323490534,1714048252169,-500.0,0.00012719,2]
[323490535,1714048252182,-500.0,0.00012719,2]
[323490536,1714048252196,-737.31,0.00012719,2]
[323490537,1714048252209,-500.0,0.00012719,2]
[323490538,1714048252228,-500.0,0.00012719,2]
[323490539,1714048252239,-500.0,0.00012719,2]
[323490540,1714048252251,-500.0,0.0001272,2]
[323490541,1714048252262,-500.0,0.0001272,2]
[323490542,1714048252274,-321.17,0.0001272,2]
[323490543,1714048252286,-500.0,0.0001272,2]
[323490544,1714048252298,-500.0,0.0001272,2]
[323490545,1714048252311,-500.0,0.0001272,2]
[323490546,1714048252326,-500.0,0.0001272,2]
[323490547,1714048252340,-500.0,0.0001272,2]
[323490548,1714048252354,-500.0,0.0001272,2]
[323490549,1714048252368,-500.0,0.0001272,2]
[323490550,1714048252382,-257.03,0.0001272,2]
[323490551,1714048252395,-500.0,0.0001272,2]
[323490552,1714048252408,-781.48,0.0001272,2]
[323490553,1714048252420,-500.0,0.0001272,2]
[323490554,1714048252431,-500.0,0.0001272,2]
[323490555,1714048252444,-500.0,0.0001272,2]
[323490556,1714048252455,-500.0,0.0001272,2]
[323490557,1714048252470,-723.96,0.0001272,2]
[323490558,1714048252481,-500.0,0.0001272,2]
[323490559,1714048252492,-524.26,0.0001272,2]
[323490560,1714048252505,-500.0,0.0001272,2]
[323490561,1714048252516,-926.68,0.0001272,2]
[323490562,1714048252527,-500.0,0.0001272,2]
[323490563,1714048252538,-555.2,0.0001272,2]
[323490564,1714048252551,-3176.08,0.0001272,2]
[323490565,1714048252562,-500.0,0.0001272,2]
[323490566,1714048252574,-1585.08,0.0001272,2]
[323490567,1714048252588,-1236.06,0.0001272,2]
[323490568,1714048252600,-353.73031939,0.0001272,2]
[323490569,1714048252612,-3322.68,0.0001272,2]
[323490570,1714048252625,-1203.12,0.0001272,2]
[323490571,1714048252636,-664.92,0.0001272,2]
[323490572,1714048252650,-2223.6,0.0001272,2]
[323490573,1714048252663,-500.0,0.0001272,2]
[323490574,1714048252674,-500.0,0.0001272,2]
[323490575,1714048252686,-500.0,0.0001272,2]
[323490576,1714048252697,-514.25,0.0001272,2]
[323490577,1714048252709,-513.56,0.0001272,2]
[323490578,1714048252724,-500.0,0.0001272,2]
[323490579,1714048252737,-1045.96,0.0001272,2]
[323490580,1714048252748,-456.20528196,0.0001272,2]
[323490581,1714048252760,-396.2,0.0001272,2]
[323490582,1714048252771,-500.0,0.00012721,2]
[323490583,1714048252783,-205.26,0.0001274,2]
[323490584,1714048252793,-1000.0,0.00012795,2]
[323490585,1714048252805,-1000.0,0.00012796,2]
[323490586,1714048252817,-1000.0,0.00012796,2]
[323490587,1714048252829,-500.0,0.00012796,2]
[323490588,1714048252840,-176.22856803,0.000128,2]
[323490589,1714048252854,-472.6724151,0.000128,2]
[323490590,1714048252865,-59454.52884698,0.000128,2]
[323490591,1714048252877,-472.40066734,0.000128,2]
[323490592,1714048252890,-200.88129129,0.000128,2]
[323490593,1714048252903,-834.61110939,0.000128,2]
[323490594,1714048252916,-189.09138709,0.00012808,2]
[323490595,1714048252928,-472.672415,0.00012809,2]
[323490596,1714048252942,-472.672415,0.00012818,2]
[323490597,1714048252954,-301.48,0.00012822,2]
[323490598,1714048252969,-154.51,0.00012822,2]
[323490599,1714048252980,-162.85,0.00012822,2]
[323490600,1714048252992,-150.0,0.00012822,2]
[323490601,1714048253004,-418.94,0.00012822,2]
[323490602,1714048253016,-300.44,0.00012822,2]
[323490603,1714048253029,-150.0,0.00012822,2]
[323490604,1714048253041,-162.85,0.00012822,2]
[323490605,1714048253052,-150.0,0.00012822,2]
[323490606,1714048253066,-162.85,0.00012822,2]
[323490607,1714048253079,-150.0,0.00012822,2]
[323490608,1714048253093,-150.0,0.00012822,2]
[323490609,1714048253105,-150.0,0.00012822,2]
[323490610,1714048253117,-162.85,0.00012822,2]
[323490611,1714048253129,-162.85,0.00012822,2]
[323490612,1714048253142,-522.13,0.00012822,2]
[323490613,1714048253153,-150.0,0.00012822,2]
[323490614,1714048253168,-522.13,0.00012822,2]
[323490615,1714048253182,-150.0,0.00012822,2]
[323490616,1714048253194,-150.0,0.00012822,2]
[323490617,1714048253205,-472.672415,0.00012827,2]
[323490618,1714048253220,-472.672415,0.00012836,2]
[323490619,1714048253233,-472.672415,0.00012845,2]
[323490620,1714048253245,-472.40066733,0.0001285,2]
[323490621,1714048253256,-472.672415,0.00012855,2]
[323490622,1714048253267,-152.0,0.00012862,4]
[323490623,1714048253279,-472.672415,0.00012864,2]
[323490624,1714048253292,-472.672415,0.00012873,2]
[323490625,1714048253304,-472.672415,0.00012882,2]
[323490626,1714048253316,-2109.989219,0.00012889,2]
[323490627,1714048253330,-1644.6331584,0.00012889,2]
[323490628,1714048253342,-8191.041539,0.00012889,2]
[323490629,1714048253355,-310.0,0.0001289,2]
[323490630,1714048253367,-472.672415,0.00012891,2]
[323490631,1714048253379,-3327.20169357,0.00012898,2]
[323490632,1714048253390,-155.14460402,0.00012898,2]
[323490633,1714048253402,-155.08797653,0.00012898,2]
[323490634,1714048253413,-536.68683461,0.00012898,2]
[323490635,1714048253424,-228.19119766,0.00012898,2]
[323490636,1714048253436,-1599.07886871,0.00012898,2]
[323490637,1714048253449,-2320.96735053,0.00012898,2]
[323490638,1714048253460,-1201.63437,0.00012899,2]
[323490639,1714048253475,-62924.73515962,0.000129,5]
[323490640,1714048253507,-4449.05182719,0.000129,5]
[323490641,1714048253521,-49579.15051162,0.000129,5]
[323490642,1714048253534,-11463.54389171,0.000129,5]
[323490643,1714048253843,-441.47191824,0.00012253,2]
[323490644,1714048253853,-4729.90610447,0.000129,5]
[323490645,1714048253939,-22.14098914,0.00012328,2]
[323490646,1714048254045,-200.52535369,0.00011839,2]
[323490647,1714048254054,-180.12156538,0.00011896,2]
[323490648,1714048254064,-480.85901086,0.00012328,2]
[323490649,1714048254403,-441.47191824,0.00012436,2]
[323490650,1714048254425,-441.47191824,0.00012618,2]
[323490651,1714048254445,-834.61110937,0.0001285,2]
[323490652,1714048254458,-2759.3659441,0.000129,5]
[323490653,1714048254477,-4071.23368386,0.000129,5]
[323490654,1714048254492,-3682.2884251,0.000129,5]
[323490655,1714048254504,-55367.93892005,0.000129,5]
[323490656,1714048254516,-46987.81226007,0.000129,5]
[323490657,1714048254528,-24714.70305213,0.000129,5]
[323490658,1714048254540,-2355.48140587,0.000129,5]
[323490659,1714048254552,-1605.7664576,0.000129,5]
[323490660,1714048254662,-31715.73820004,0.000129,5]
[323490661,1714048254673,-120542.13137139,0.000129,5]
[323490662,1714048254685,-513365.33702612,0.000129,5]
[323490663,1714048254695,-79691.11918919,0.000129,5]
[323490664,1714048717155,-641.63389622,9.626e-05,2]
[323490665,1714048717180,-706.66913894,9.627e-05,2]
[323490666,1714048717203,-198.58,9.628e-05,2]
[323490667,1714048717228,-323.93578704,0.0001,2]
[323490668,1714048717252,-340.46,0.00011651,2]
[323490669,1714048717276,-588.2900361,0.00011884,2]
[323490670,1714048717298,-428.46828701,0.00011889,2]
[323490671,1714048717322,-198.58,0.00011892,2]
[323490672,1714048717347,-152.88,0.00011893,2]
[323490673,1714048717369,-420.50285469,0.00011894,2]
[323490674,1714048717742,-4000.0,0.00011894,2]
[323490675,1714048717792,-4000.0,0.00011894,2]
[323490676,1714048718702,-4000.0,0.00011894,2]
[323490677,1714048719319,-4000.0,0.00011894,2]
[323490678,1714048719916,-4000.0,0.00011894,2]
[323490679,1714048763945,-4000.0,9.626e-05,2]
[323490680,1714048764524,-4000.0,9.626e-05,2]
[323490681,1714048765115,-2141.53875728,9.626e-05,2]
[323490682,1714048765140,-164.46,0.00011621,2]
[323490683,1714048765161,-155.0,0.00011893,2]
[323490684,1714048765183,-1539.00124272,0.00011894,2]
[323490685,1714048765776,-1398.03966962,0.00011894,2]
[323490686,1714048765797,-150.0,0.00011894,2]
[323490687,1714048765818,-155.69435453,0.00011895,2]
[323490688,1714048765839,-551.71807527,0.00011895,2]
[323490689,1714048765862,-538.32384601,0.00011895,2]
[323490690,1714048765884,-487.39575112,0.00011895,2]
[323490691,1714048765906,-427.91653768,0.00011895,2]
[323490692,1714048765926,-290.91176577,0.00011895,2]
[323490693,1714048766366,-1486.76680864,0.00011895,2]
[323490694,1714048766387,-265.50698915,0.00011895,2]
[323490695,1714048766407,-155.01653684,0.00011895,2]
[323490696,1714048766427,-353.23172617,0.00011895,2]
[323490697,1714048766449,-155.0,0.00011895,2]
[323490698,1714048766471,-1584.4779392,0.00011895,2]
[323490699,1714048766977,-488.04755554,0.00011895,2]
[323490700,1714048766999,-641.95589188,0.00011895,2]
[323490701,1714048767024,-297.71899308,0.00011895,2]
[323490702,1714048767046,-706.66913894,0.00011895,2]
[323490703,1714048767068,-255.3668917,0.00011895,2]
[323490704,1714048767089,-155.0,0.00011895,2]
[323490705,1714048767111,-155.78492784,0.00011895,2]
[323490706,1714048767134,-216.15044908,0.00011895,2]
[323490707,1714048767156,-1083.30615194,0.00011895,2]
[323490708,1714048767599,-214.94065948,0.00011895,2]
[323490709,1714048767623,-162.12456104,0.00011895,2]
[323490710,1714048767644,-199.97342672,0.00011895,2]
[323490711,1714048767665,-155.53324614,0.00011895,2]
[323490712,1714048767686,-226.20204184,0.00011895,2]
[323490713,1714048767709,-164.47454881,0.00011895,2]
[323490714,1714048767734,-1148.2720982,0.00011895,2]
[323490715,1714048767758,-376.71560002,0.00011895,2]
[323490716,1714048767779,-313.54403487,0.00011895,2]
[323490717,1714048767800,-323.28165862,0.00011895,2]
[323490718,1714048767821,-455.80655655,0.00011895,2]
[323490719,1714048767842,-259.13156771,0.00011895,2]
[323490720,1714048768409,-685.64258472,0.00011895,2]
[323490721,1714048768430,-155.4084474,0.00011896,2]
[323490722,1714048768453,-2321.74176097,0.00011896,2]
[323490723,1714048768475,-589.56,0.00011897,2]
[323490724,1714048768497,-247.64720691,0.00011897,2]
[323490725,1714048769171,-252.35279309,0.00011897,2]
[323490726,1714048769193,-500.0,0.00011897,2]
[323490727,1714048769214,-500.0,0.00011897,2]
[323490728,1714048769236,-500.0,0.00011897,2]
[323490729,1714048769258,-500.0,0.00011897,2]
[323490730,1714048769279,-500.0,0.00011897,2]
[323490731,1714048769301,-500.0,0.00011897,2]
[323490732,1714048769322,-500.0,0.00011897,2]
[323490733,1714048769344,-247.64720691,0.00011897,2]
[323490734,1714048770066,-252.35279309,0.00011897,2]
[323490735,1714048770091,-500.0,0.00011897,2]
[323490736,1714048770115,-500.0,0.00011897,2]
[323490737,1714048770136,-500.0,0.00011897,2]
[323490738,1714048770158,-500.0,0.00011897,2]
[323490739,1714048770180,-500.0,0.00011897,2]
[323490740,1714048770201,-500.0,0.00011897,2]
[323490741,1714048770223,-327.33,0.00011897,2]
[323490742,1714048770243,-420.31720691,0.00011897,2]
[323490743,1714048780153,-79.68279309,0.00011897,2]
[323490744,1714048780175,-500.0,0.00011897,2]
[323490745,1714048780197,-500.0,0.00011897,2]
[323490746,1714048780223,-500.0,0.00011897,2]
[323490747,1714048780246,-500.0,0.00011897,2]
[323490748,1714048780270,-460.31720691,0.00011897,2]
[323490749,1714048805105,-542.03417704,9.515e-05,2]
[323490750,1714048805128,-866.55039415,0.00011894,2]
[323490751,1714048805153,-944.18297447,0.00011894,2]
[323490752,1714048805178,-1647.23245434,0.00011894,2]
[323490753,1714048805655,-4000.0,0.00011894,2]
[323490754,1714048806333,-4000.0,0.00011894,2]
[323490755,1714048806912,-4000.0,0.00011894,2]
[323490756,1714048807544,-4000.0,0.00011894,2]
[323490757,1714048808522,-4000.0,0.00011894,2]
[323490758,1714048809153,-4000.0,0.00011894,2]
[323490759,1714048809810,-155.0,9.514e-05,2]
[323490760,1714048809832,-3845.0,0.00011894,2]
[323490761,1714048815116,-990.0,0.00011894,2]
[323490762,1714049245161,-303.00909217,9.049e-05,2]
[323490763,1714049297921,-155.0,9.048e-05,2]
[323490764,1714049297944,-288.51985909,9.049e-05,2]
[323490765,1714049297964,-403.66004677,9.049e-05,2]
[323490766,1714049297986,-341.76,9.05e-05,2]
[323490767,1714049298009,-173.67,0.00010863,2]
[323490768,1714049298029,-150.0,0.00011004,2]
[323490769,1714049298052,-2487.39009414,0.00011089,2]
[323490770,1714049299132,-4000.0,0.00011089,2]
[323490771,1714049299762,-4000.0,0.00011089,2]
[323490772,1714049300486,-4000.0,0.00011089,2]
[323490773,1714049301242,-4000.0,0.00011089,2]
[323490774,1714049301936,-4000.0,0.00011089,2]
[323490775,1714049357193,-30638.26741791,9.049e-05,2]
[323490776,1714049363114,-938.62726945,0.00011088,2]
[323490777,1714049374093,-490.5858,0.00010991,2]
[323490794,1714049432474,-798.12958754,0.00011087,2]
[323490795,1714049432485,-1852.14345278,0.00011087,2]
[323490796,1714049432495,-288.51985909,0.00011088,2]
[323490797,1714049432504,-4259.10399077,0.00011092,2]
[323490798,1714049432516,-452.75892829,0.00011092,2]
[323490799,1714049432530,-835.70593443,0.00011092,2]
[323490800,1714049432539,-4664.69,0.00011093,2]
[323490801,1714049432548,-167.58,0.00011093,2]
[323490802,1714049432558,-270.88,0.00011124,2]
[323490803,1714049432567,-202.64,0.00011156,2]
[323490804,1714049432577,-275.62,0.00011219,2]
[323490805,1714049432590,-278.38,0.00011219,2]
[323490806,1714049432601,-336.09828855,0.00011314,2]
[323490807,1714049432614,-5.66171145,0.00011314,2]
[323490808,1714049432625,-150.0,0.00011534,2]
[323490809,1714049432640,-1511.00000031,0.00011545,2]
[323490810,1714049432651,-1308.83738925,0.00011549,2]
[323490811,1714049432662,-150.0,0.00011589,2]
[323490812,1714049432672,-167.58,0.00011671,2]
[323490813,1714049432683,-2545.53212322,0.00011776,2]
[323490814,1714049432693,-406.1535,0.00011796,2]
[323490815,1714049432703,-220.73595912,0.00011796,2]
[323490816,1714049432713,-10000.0,0.00011884,2]
[323490817,1714049432723,-211.0195828,0.00011893,2]
[323490818,1714049432733,-866.05409373,0.00011894,2]
[323490819,1714049432743,-155.0,0.00011894,2]
[323490820,1714049432753,-1971.70443764,0.00011894,2]
[323490821,1714049432765,-979.60756,0.00011894,2]
[323490822,1714049434030,-432.62008894,0.00011894,2]
[323490823,1714049434046,-334.50747262,0.00011894,2]
[323490824,1714049434059,-332.71404155,0.00011894,2]
[323490825,1714049434070,-17.90012989,0.00011894,2]
[323490826,1714049434080,-500.0,0.00011894,2]
[323490827,1714049434090,-500.0,0.00011894,2]
[323490828,1714049434100,-181.54464752,0.00011895,2]
[323490829,1714049434109,-234.6136824,0.00011895,2]
[323490830,1714049434119,-488.15040973,0.00011895,2]
[323490831,1714049434128,-155.0,0.00011895,2]
[323490832,1714049434147,-446.4799413,0.00011895,2]
[323490833,1714049434157,-6249.17082649,0.00011895,2]
[323490834,1714049434168,-1089.19109747,0.00011895,2]
[323490835,1714049434180,-10.14191955,0.00011895,2]
[323490847,1714049437578,-244.8759176,0.00011895,2]
[323490849,1714049437588,-155.0,0.00011895,2]
[323490850,1714049437598,-6143.0240824,0.00011895,2]
[323490851,1714049437639,-569.89984797,0.00011895,2]
[323490852,1714049437810,-815.0,0.00011895,2]
[323490853,1714049437833,-191.35606963,0.00011895,2]
[323490854,1714049437843,-1242.31430456,0.00011895,2]
[323490855,1714049437852,-156.10375301,0.00011895,2]
[323490856,1714049437862,-418.45913144,0.00011895,2]
[323490857,1714049437872,-200507.42479085,0.00011895,2]
[323490858,1714049437887,-552031.99311266,0.00011895,2]
[323490859,1714049437897,-158.24841086,0.00011896,2]
[323490860,1714049437906,-500.0,0.00011896,2]
[323490861,1714049437917,-500.0,0.00011896,2]
[323490862,1714049437927,-500.0,0.00011896,2]
[323490863,1714049437936,-341.19110198,0.00011896,2]
[323490864,1714049437945,-500.0,0.00011896,2]
[323490865,1714049437955,-500.0,0.00011896,2]
[323490866,1714049437967,-500.0,0.00011896,2]
[323490867,1714049437977,-500.0,0.00011896,2]
[323490868,1714049437987,-500.0,0.00011896,2]
[323490869,1714049437996,-500.0,0.00011896,2]
[323490870,1714049438007,-500.0,0.00011896,2]
[323490871,1714049438016,-500.0,0.00011896,2]
[323490872,1714049438025,-500.0,0.00011896,2]
[323490873,1714049438035,-500.0,0.00011896,2]
[323490874,1714049438044,-500.0,0.00011896,2]
[323490875,1714049438053,-500.0,0.00011896,2]
[323490876,1714049438062,-500.0,0.00011896,2]
[323490877,1714049438071,-500.0,0.00011896,2]
[323490878,1714049438080,-500.0,0.00011896,2]
[323490879,1714049438090,-500.0,0.00011896,2]
[323490880,1714049438099,-590.47,0.00011896,2]
[323490881,1714049438108,-500.0,0.00011896,2]
[323490882,1714049438118,-12983.83,0.00011896,2]
[323490883,1714049438126,-500.0,0.00011896,2]
[323490884,1714049438138,-539.68279309,0.00011896,2]
[323490885,1714049438147,-500.0,0.00011896,2]
[323490886,1714049438156,-1439.26,0.00011896,2]
[323490887,1714049438165,-500.0,0.00011896,2]
[323490888,1714049438174,-1070.09,0.00011896,2]
[323490889,1714049438183,-500.0,0.00011896,2]
[323490890,1714049438192,-500.0,0.00011896,2]
[323490891,1714049438201,-500.0,0.00011896,2]
[323490892,1714049438211,-500.0,0.00011896,2]
[323490893,1714049438220,-500.0,0.00011896,2]
[323490894,1714049438229,-500.0,0.00011896,2]
[323490895,1714049438240,-500.0,0.00011896,2]
[323490896,1714049438250,-500.0,0.00011896,2]
[323490897,1714049438259,-150.0,0.00011896,2]
[323490898,1714049438269,-500.0,0.00011896,2]
[323490899,1714049438278,-500.0,0.00011896,2]
[323490900,1714049438287,-500.0,0.00011896,2]
[323490901,1714049438296,-500.0,0.00011896,2]
[323490902,1714049438305,-500.0,0.00011896,2]
[323490903,1714049438314,-500.0,0.00011896,2]
[323490904,1714049438323,-2254.44,0.00011896,2]
[323490905,1714049438332,-500.0,0.00011896,2]
[323490906,1714049438341,-500.0,0.00011896,2]
[323490907,1714049438350,-500.0,0.00011896,2]
[323490908,1714049438359,-500.0,0.00011896,2]
[323490909,1714049438368,-500.0,0.00011896,2]
[323490910,1714049438378,-500.0,0.00011896,2]
[323490911,1714049438389,-500.0,0.00011896,2]
[323490912,1714049438399,-1142.88,0.00011896,2]
[323490913,1714049438408,-500.0,0.00011896,2]
[323490914,1714049438418,-500.0,0.00011896,2]
[323490915,1714049438427,-1589.43,0.00011896,2]
[323490916,1714049438436,-500.0,0.00011896,2]
[323490917,1714049438446,-500.0,0.00011896,2]
[323490918,1714049438454,-852.07,0.00011896,2]
[323490919,1714049438464,-938.56,0.00011896,2]
[323490920,1714049438474,-500.0,0.00011896,2]
[323490921,1714049438483,-500.0,0.00011896,2]
[323490922,1714049438492,-500.0,0.00011896,2]
[323490923,1714049438501,-500.0,0.00011896,2]
[323490924,1714049438510,-500.0,0.00011896,2]
[323490925,1714049438520,-500.0,0.00011896,2]
[323490926,1714049438529,-3837.92,0.00011896,2]
[323490927,1714049438539,-516.49813209,0.00011896,2]
[323490928,1714049438548,-612.84,0.00011896,2]
[323490929,1714049438557,-500.0,0.00011896,2]
[323490930,1714049438566,-500.0,0.00011896,2]
[323490931,1714049438575,-500.0,0.00011896,2]
[323490932,1714049438584,-500.0,0.00011896,2]
[323490933,1714049438593,-500.0,0.00011896,2]
[323490934,1714049438602,-500.0,0.00011896,2]
[323490935,1714049438612,-500.0,0.00011896,2]
[323490936,1714049438622,-500.0,0.00011896,2]
[323490937,1714049438631,-500.0,0.00011896,2]
[323490938,1714049438642,-500.0,0.00011896,2]
[323490939,1714049438651,-9015.46,0.00011896,2]
[323490940,1714049438660,-500.0,0.00011896,2]
[323490941,1714049438669,-1376.75,0.00011896,2]
[323490942,1714049438678,-500.0,0.00011896,2]
[323490943,1714049438687,-2679.55,0.00011896,2]
[323490944,1714049438696,-500.0,0.00011896,2]
[323490945,1714049438706,-500.0,0.00011896,2]
[323490946,1714049438716,-1804.82,0.00011896,2]
[323490947,1714049438725,-500.0,0.00011896,2]
[323490948,1714049438736,-500.0,0.00011896,2]
[323490949,1714049438746,-500.0,0.00011896,2]
[323490950,1714049438756,-3415.61,0.00011896,2]
[323490951,1714049438766,-500.0,0.00011896,2]
[323490952,1714049438776,-500.0,0.00011896,2]
[323490953,1714049438786,-500.0,0.00011896,2]
[323490954,1714049438795,-500.0,0.00011896,2]
[323490955,1714049438805,-500.0,0.00011896,2]
[323490956,1714049438815,-500.0,0.00011896,2]
[323490957,1714049438824,-523.31,0.00011896,2]
[323490958,1714049438834,-500.0,0.00011896,2]
[323490959,1714049438843,-500.0,0.00011896,2]
[323490960,1714049438853,-500.0,0.00011896,2]
[323490961,1714049438863,-1140.85,0.00011896,2]
[323490962,1714049438875,-17406.02,0.00011896,2]
[323490963,1714049438885,-500.0,0.00011896,2]
[323490964,1714049438894,-500.0,0.00011896,2]
[323490965,1714049438903,-2053.76,0.00011896,2]
[323490966,1714049438914,-488.9088244,0.00011896,2]
[323490967,1714049438924,-500.0,0.00011896,2]
[323490968,1714049438933,-897.66,0.00011896,2]
[323490969,1714049438944,-500.0,0.00011896,2]
[323490970,1714049438953,-500.0,0.00011896,2]
[323490971,1714049438963,-500.0,0.00011896,2]
[323490972,1714049438972,-500.0,0.00011896,2]
[323490973,1714049438982,-3689.77,0.00011896,2]
[323490974,1714049438991,-500.0,0.00011896,2]
[323490975,1714049439000,-500.0,0.00011896,2]
[323490976,1714049439011,-500.0,0.00011896,2]
[323490977,1714049439021,-500.0,0.00011896,2]
[323490978,1714049439032,-1706.73,0.00011896,2]
[323490979,1714049439042,-500.0,0.00011897,2]
[323490980,1714049439051,-500.0,0.00011897,2]
[323490981,1714049439060,-534.27,0.00011897,2]
[323490982,1714049439070,-500.0,0.00011897,2]
[323490983,1714049439080,-500.0,0.00011897,2]
[323490984,1714049439089,-500.0,0.00011897,2]
[323490985,1714049439098,-371.17,0.00011897,2]
[323490986,1714049439108,-500.0,0.00011897,2]
[323490987,1714049439117,-500.0,0.00011897,2]
[323490988,1714049439127,-500.0,0.00011897,2]
[323490989,1714049439138,-150.0,0.00011897,2]
[323490990,1714049439148,-363.53802358,0.00011897,2]
[323490991,1714049439156,-500.0,0.00011897,2]
[323490992,1714049439165,-500.0,0.00011897,2]
[323490993,1714049439174,-500.0,0.00011897,2]
[323490994,1714049439183,-500.0,0.00011897,2]
[323490995,1714049439192,-500.0,0.00011897,2]
[323490996,1714049439202,-500.0,0.00011897,2]
[323490997,1714049439213,-500.0,0.00011897,2]
[323490998,1714049439223,-500.0,0.00011897,2]
[323490999,1714049439232,-500.0,0.00011897,2]
[323491000,1714049439242,-500.0,0.00011897,2]
[323491001,1714049439254,-500.0,0.00011897,2]
[323491002,1714049439264,-500.0,0.00011897,2]
[323491003,1714049439274,-500.0,0.00011897,2]
[323491004,1714049439284,-500.0,0.00011897,2]
[323491005,1714049439294,-391.39297556,0.00011897,2]
[323491006,1714049439303,-500.0,0.00011897,2]
[323491007,1714049439312,-500.0,0.00011897,2]